[Event "Live Chess"]
[Site "Chess.com"]
[Date "2024.06.02"]
[Round "-"]
[White "RichardABates"]
[Black "CarmelJane"]
[Result "1-0"]
[WhiteElo "2371"]
[BlackElo "2051"]
[TimeControl "300"]
[EndTime "18:01:56 PDT"]
[Termination "RichardABates won by resignation"]

1. d4 {[%clk 0:04:57.2]} 1... Nf6 {[%clk 0:04:59]} 2. Nf3 {[%clk 0:04:55.3]}
2... g6 {[%clk 0:04:51.6]} 3. g3 {[%clk 0:04:52.9]} 3... Bg7 {[%clk 0:04:51.5]}
4. Bg2 {[%clk 0:04:51.7]} 4... O-O {[%clk 0:04:51.1]} 5. c4 {[%clk 0:04:50.4]}
5... d5 {[%clk 0:04:48.1]} 6. cxd5 {[%clk 0:04:48.8]} 6... Nxd5 {[%clk 0:04:48]}
7. O-O {[%clk 0:04:47.6]} 7... Bg4 {[%clk 0:04:43.9]} 8. Nc3 {[%clk 0:04:42.3]}
8... c6 {[%clk 0:04:42.9]} 9. e4 {[%clk 0:04:37.6]} 9... Nc7 {[%clk 0:04:35.1]}
10. Be3 {[%clk 0:04:34.6]} 10... Nd7 {[%clk 0:04:19.4]} 11. h3 {[%clk
0:04:32.1]} 11... Bxf3 {[%clk 0:04:17.8]} 12. Bxf3 {[%clk 0:04:30.6]} 12... Nb6
{[%clk 0:04:15.8]} 13. Be2 {[%clk 0:04:15.3]} 13... Ne6 {[%clk 0:04:05.7]} 14.
e5 {[%clk 0:04:10.7]} 14... Nd5 {[%clk 0:03:59]} 15. Nxd5 {[%clk 0:04:06.9]}
15... cxd5 {[%clk 0:03:56]} 16. Kg2 {[%clk 0:04:04.8]} 16... Qb6 {[%clk
0:03:35.1]} 17. Qd2 {[%clk 0:03:55.6]} 17... Rac8 {[%clk 0:03:31.2]} 18. Rfc1
{[%clk 0:03:52.7]} 18... a6 {[%clk 0:03:17.2]} 19. f4 {[%clk 0:03:50.1]} 19...
Rxc1 {[%clk 0:03:12.8]} 20. Rxc1 {[%clk 0:03:48.5]} 20... Nc7 {[%clk 0:03:09]}
21. Bf3 {[%clk 0:03:35.2]} 21... e6 {[%clk 0:03:05.7]} 22. a4 {[%clk 0:03:31.3]}
22... a5 {[%clk 0:03:00.2]} 23. Rc5 {[%clk 0:03:27.4]} 23... Rc8 {[%clk
0:02:27.7]} 24. Qxa5 {[%clk 0:02:22.8]} 24... Qxa5 {[%clk 0:02:25.4]} 25. Rxa5
{[%clk 0:02:20.8]} 25... Na6 {[%clk 0:02:23.3]} 26. Rb5 {[%clk 0:02:17.3]} 26...
Bf8 {[%clk 0:02:15.8]} 27. Rxb7 {[%clk 0:02:14.3]} 27... Nb4 {[%clk 0:01:58]}
28. a5 {[%clk 0:02:09]} 28... Nd3 {[%clk 0:01:56.3]} 29. Be2 {[%clk 0:02:00.9]}
29... Ne1+ {[%clk 0:01:49.6]} 30. Kf1 {[%clk 0:01:57.2]} 30... Nc2 {[%clk
0:01:49.5]} 31. Bf2 {[%clk 0:01:53.4]} 31... Ra8 {[%clk 0:01:15.5]} 32. a6
{[%clk 0:01:47]} 32... Kg7 {[%clk 0:01:14.9]} 33. g4 {[%clk 0:01:36.7]} 33... h5
{[%clk 0:01:09.6]} 34. gxh5 {[%clk 0:01:29.1]} 34... gxh5 {[%clk 0:01:09.5]} 35.
f5 {[%clk 0:01:23.5]} 35... exf5 {[%clk 0:01:05]} 36. e6 {[%clk 0:01:22.1]}
36... Kg6 {[%clk 0:00:52.4]} 37. Rxf7 {[%clk 0:01:16.5]} 37... f4 {[%clk
0:00:51]} 38. Bd3+ {[%clk 0:01:13.9]} 1-0

[Event "Live Chess"]
[Site "Chess.com"]
[Date "2024.06.02"]
[Round "-"]
[White "e4evr"]
[Black "NAZRIZ1977"]
[Result "1-0"]
[WhiteElo "2274"]
[BlackElo "2133"]
[TimeControl "300"]
[EndTime "18:02:23 PDT"]
[Termination "e4evr won by resignation"]

1. e4 {[%clk 0:04:58.1]} 1... c5 {[%clk 0:04:57.4]} 2. d4 {[%clk 0:04:55.6]}
2... cxd4 {[%clk 0:04:55.7]} 3. c3 {[%clk 0:04:55.3]} 3... Nf6 {[%clk
0:04:55.1]} 4. e5 {[%clk 0:04:54.1]} 4... Nd5 {[%clk 0:04:53.1]} 5. Qxd4 {[%clk
0:04:53.3]} 5... Nb6 {[%clk 0:04:51.2]} 6. f4 {[%clk 0:04:51.6]} 6... Nc6 {[%clk
0:04:50.3]} 7. Qf2 {[%clk 0:04:51.2]} 7... g6 {[%clk 0:04:49.2]} 8. Nf3 {[%clk
0:04:50.3]} 8... d6 {[%clk 0:04:48.7]} 9. exd6 {[%clk 0:04:48.7]} 9... Qxd6
{[%clk 0:04:47.8]} 10. Be3 {[%clk 0:04:48.2]} 10... Bg7 {[%clk 0:04:44.1]} 11.
Na3 {[%clk 0:04:46.9]} 11... O-O {[%clk 0:04:38.3]} 12. Nb5 {[%clk 0:04:45.4]}
12... Qd8 {[%clk 0:04:36.8]} 13. Nxa7 {[%clk 0:04:41.8]} 13... Nd5 {[%clk
0:04:25.7]} 14. Nxc6 {[%clk 0:04:39.7]} 14... bxc6 {[%clk 0:04:23.7]} 15. Bc4
{[%clk 0:04:39]} 15... Nf6 {[%clk 0:04:10.8]} 16. O-O {[%clk 0:04:36.4]} 16...
Rb8 {[%clk 0:04:06.4]} 17. Bb3 {[%clk 0:04:34.6]} 17... Qd3 {[%clk 0:04:00.8]}
18. Rfd1 {[%clk 0:04:32.5]} 18... Qe4 {[%clk 0:03:59.1]} 19. Ng5 {[%clk
0:04:29.1]} 19... Qf5 {[%clk 0:03:49.6]} 20. Bd4 {[%clk 0:04:06.6]} 20... h6
{[%clk 0:03:44.5]} 21. Nf3 {[%clk 0:03:50.7]} 21... Qxf4 {[%clk 0:03:41.6]} 22.
Be5 {[%clk 0:03:48.7]} 22... Ng4 {[%clk 0:03:29.2]} 23. Bxf4 {[%clk 0:03:46.6]}
23... Nxf2 {[%clk 0:03:28.2]} 24. Bxb8 {[%clk 0:03:42.4]} 24... Nxd1 {[%clk
0:03:26.5]} 25. Rxd1 {[%clk 0:03:42]} 25... Bg4 {[%clk 0:03:24.3]} 26. Bg3
{[%clk 0:03:39.2]} 26... e5 {[%clk 0:03:22.5]} 27. Re1 {[%clk 0:03:34.8]} 1-0

[Event "Live Chess"]
[Site "Chess.com"]
[Date "2024.06.02"]
[Round "-"]
[White "Queensandpawns"]
[Black "KeithArkell"]
[Result "0-1"]
[WhiteElo "2293"]
[BlackElo "2434"]
[TimeControl "300"]
[EndTime "18:02:36 PDT"]
[Termination "KeithArkell won by resignation"]

1. e4 {[%clk 0:04:59.6]} 1... c6 {[%clk 0:04:58.3]} 2. d4 {[%clk 0:04:59.3]}
2... d5 {[%clk 0:04:57.3]} 3. Nc3 {[%clk 0:04:59.2]} 3... g6 {[%clk 0:04:56.3]}
4. exd5 {[%clk 0:04:57.5]} 4... cxd5 {[%clk 0:04:55.2]} 5. h4 {[%clk 0:04:56.5]}
5... h5 {[%clk 0:04:53.3]} 6. Bd3 {[%clk 0:04:55.4]} 6... Nf6 {[%clk 0:04:52.4]}
7. Be3 {[%clk 0:04:54.9]} 7... Bf5 {[%clk 0:04:51.4]} 8. Bxf5 {[%clk 0:04:54]}
8... gxf5 {[%clk 0:04:50.8]} 9. Nf3 {[%clk 0:04:53.9]} 9... e6 {[%clk
0:04:49.6]} 10. Ne5 {[%clk 0:04:53.5]} 10... Nc6 {[%clk 0:04:48.6]} 11. Qd3
{[%clk 0:04:51.3]} 11... Nxe5 {[%clk 0:04:46.7]} 12. dxe5 {[%clk 0:04:51.2]}
12... Ne4 {[%clk 0:04:46.1]} 13. O-O-O {[%clk 0:04:49.5]} 13... Rc8 {[%clk
0:04:40.4]} 14. Nxe4 {[%clk 0:04:38.8]} 14... fxe4 {[%clk 0:04:39.1]} 15. Qb5+
{[%clk 0:04:37]} 15... Qd7 {[%clk 0:04:38.5]} 16. Qxd7+ {[%clk 0:04:31.8]} 16...
Kxd7 {[%clk 0:04:38.4]} 17. Rhe1 {[%clk 0:04:30.1]} 17... b6 {[%clk 0:04:34]}
18. Bg5 {[%clk 0:04:29]} 18... Ke8 {[%clk 0:04:31]} 19. Bf6 {[%clk 0:04:28.1]}
19... Rg8 {[%clk 0:04:29.5]} 20. g3 {[%clk 0:04:27]} 20... Be7 {[%clk
0:04:28.9]} 21. Bxe7 {[%clk 0:04:19.6]} 21... Kxe7 {[%clk 0:04:28.8]} 22. c3
{[%clk 0:04:19.5]} 22... f6 {[%clk 0:04:25.2]} 23. Kd2 {[%clk 0:04:19.1]} 23...
fxe5 {[%clk 0:04:24.2]} 24. Ke3 {[%clk 0:04:18.5]} 24... Rgf8 {[%clk 0:04:23]}
25. Rg1 {[%clk 0:04:16]} 25... Rf3+ {[%clk 0:04:21.9]} 26. Ke2 {[%clk
0:04:15.9]} 26... Rcf8 {[%clk 0:04:21.3]} 27. Rdf1 {[%clk 0:04:15.4]} 27... d4
{[%clk 0:04:20]} 28. cxd4 {[%clk 0:04:15]} 28... exd4 {[%clk 0:04:19.5]} 29. Rg2
{[%clk 0:04:14.5]} 29... d3+ {[%clk 0:04:18.6]} 30. Kd2 {[%clk 0:04:13.9]} 30...
Kd6 {[%clk 0:04:15.1]} 31. Re1 {[%clk 0:04:11.4]} 31... Kd5 {[%clk 0:04:14]} 32.
b3 {[%clk 0:04:09.9]} 32... Rxf2+ {[%clk 0:04:13.3]} 33. Rxf2 {[%clk 0:04:09.3]}
33... Rxf2+ {[%clk 0:04:12.9]} 34. Ke3 {[%clk 0:04:09.2]} 34... Rf3+ {[%clk
0:04:10]} 35. Kd2 {[%clk 0:04:08.4]} 35... Kd4 {[%clk 0:04:09.6]} 36. Rg1 {[%clk
0:04:06.6]} 36... Rf2+ {[%clk 0:04:07.2]} 0-1

[Event "Live Chess"]
[Site "Chess.com"]
[Date "2024.06.02"]
[Round "-"]
[White "Plato_77"]
[Black "booktrunk"]
[Result "1-0"]
[WhiteElo "1318"]
[BlackElo "1484"]
[TimeControl "300"]
[EndTime "18:02:53 PDT"]
[Termination "Plato_77 won by checkmate"]

1. d4 {[%clk 0:04:57.1]} 1... b6 {[%clk 0:04:56.4]} 2. Bf4 {[%clk 0:04:54.5]}
2... Bb7 {[%clk 0:04:51.6]} 3. e3 {[%clk 0:04:52]} 3... h6 {[%clk 0:04:48.3]} 4.
Nf3 {[%clk 0:04:50.4]} 4... e6 {[%clk 0:04:47.2]} 5. h3 {[%clk 0:04:48]} 5...
Nf6 {[%clk 0:04:45.7]} 6. Nbd2 {[%clk 0:04:46.4]} 6... Bb4 {[%clk 0:04:40.8]} 7.
c3 {[%clk 0:04:44.7]} 7... Be7 {[%clk 0:04:39.2]} 8. a4 {[%clk 0:04:40.1]} 8...
Nh5 {[%clk 0:04:38.3]} 9. Bh2 {[%clk 0:04:38.2]} 9... O-O {[%clk 0:04:35.2]} 10.
Be2 {[%clk 0:04:35.6]} 10... Nf6 {[%clk 0:04:31.8]} 11. O-O {[%clk 0:04:32]}
11... Nh7 {[%clk 0:04:30.5]} 12. a5 {[%clk 0:04:23.5]} 12... Bd6 {[%clk
0:04:27.7]} 13. axb6 {[%clk 0:04:20.3]} 13... Bxh2+ {[%clk 0:04:25.1]} 14. Kxh2
{[%clk 0:04:12.7]} 14... cxb6 {[%clk 0:04:23.6]} 15. Nc4 {[%clk 0:04:08.1]}
15... Qc7+ {[%clk 0:04:20]} 16. g3 {[%clk 0:04:05.3]} 16... d5 {[%clk
0:04:14.6]} 17. Nce5 {[%clk 0:03:53.4]} 17... Nd7 {[%clk 0:04:13.5]} 18. Nxd7
{[%clk 0:03:50.9]} 18... Qxd7 {[%clk 0:04:11.7]} 19. Ne5 {[%clk 0:03:50.2]}
19... Qe7 {[%clk 0:04:09]} 20. f4 {[%clk 0:03:42.7]} 20... Rfe8 {[%clk
0:03:37.1]} 21. Ba6 {[%clk 0:03:39.5]} 21... Bxa6 {[%clk 0:03:35.3]} 22. Rxa6
{[%clk 0:03:39.4]} 22... Kh8 {[%clk 0:03:24.6]} 23. Qe2 {[%clk 0:03:26]} 23...
Nf8 {[%clk 0:03:16.8]} 24. Rfa1 {[%clk 0:03:23.9]} 24... Rec8 {[%clk 0:03:07.2]}
25. Qb5 {[%clk 0:03:16.7]} 25... Ng6 {[%clk 0:03:04.4]} 26. Nc6 {[%clk
0:03:08.7]} 26... Qd7 {[%clk 0:02:56.9]} 27. Nxa7 {[%clk 0:03:00.6]} 27... Qxb5
{[%clk 0:02:52.3]} 28. Nxb5 {[%clk 0:02:59.2]} 28... Rxa6 {[%clk 0:02:50.1]} 29.
Rxa6 {[%clk 0:02:59.1]} 29... Rb8 {[%clk 0:02:48.5]} 30. Nd6 {[%clk 0:02:55.2]}
30... Kg8 {[%clk 0:02:41.1]} 31. Ra7 {[%clk 0:02:33.3]} 31... f6 {[%clk
0:02:29.6]} 32. Kg2 {[%clk 0:02:18.1]} 32... e5 {[%clk 0:02:26.3]} 33. Rb7
{[%clk 0:02:08]} 33... Rd8 {[%clk 0:02:21.2]} 34. Rxb6 {[%clk 0:02:03.5]} 34...
exd4 {[%clk 0:02:19.9]} 35. exd4 {[%clk 0:02:00.8]} 35... Nf8 {[%clk 0:02:14.8]}
36. Nf5 {[%clk 0:01:44.1]} 36... Kh7 {[%clk 0:02:07.7]} 37. Ne3 {[%clk
0:01:35.1]} 37... Nd7 {[%clk 0:01:59.9]} 38. Rb5 {[%clk 0:01:32.6]} 38... Nb8
{[%clk 0:01:53.2]} 39. Nxd5 {[%clk 0:01:28.3]} 39... Nc6 {[%clk 0:01:51.9]} 40.
Ne3 {[%clk 0:01:13.4]} 40... Kg6 {[%clk 0:01:48.5]} 41. f5+ {[%clk 0:01:10.6]}
41... Kg5 {[%clk 0:01:46.9]} 42. h4+ {[%clk 0:01:09.4]} 42... Kh5 {[%clk
0:01:45.3]} 43. Kh3 {[%clk 0:01:04.5]} 43... g5 {[%clk 0:01:32]} 44. g4# {[%clk
0:01:02.4]} 1-0

[Event "Live Chess"]
[Site "Chess.com"]
[Date "2024.06.02"]
[Round "-"]
[White "WelshTiger"]
[Black "Tushinskiy"]
[Result "0-1"]
[WhiteElo "2439"]
[BlackElo "2263"]
[TimeControl "300"]
[EndTime "18:03:48 PDT"]
[Termination "Tushinskiy won by resignation"]

1. e4 {[%clk 0:04:56.3]} 1... e5 {[%clk 0:04:58.9]} 2. Nf3 {[%clk 0:04:53.8]}
2... d6 {[%clk 0:04:58.8]} 3. d4 {[%clk 0:04:52.3]} 3... Bg4 {[%clk 0:04:57.9]}
4. dxe5 {[%clk 0:04:47.8]} 4... Nd7 {[%clk 0:04:57]} 5. exd6 {[%clk 0:04:44.1]}
5... Bxd6 {[%clk 0:04:56.9]} 6. Be2 {[%clk 0:04:42.5]} 6... Qe7 {[%clk
0:04:54.1]} 7. Nc3 {[%clk 0:04:40.9]} 7... Ngf6 {[%clk 0:04:51.7]} 8. h3 {[%clk
0:04:40]} 8... Bh5 {[%clk 0:04:49.9]} 9. Bg5 {[%clk 0:04:29.6]} 9... O-O-O
{[%clk 0:04:47.8]} 10. Qd4 {[%clk 0:04:24.5]} 10... Bc5 {[%clk 0:04:45.3]} 11.
Qc4 {[%clk 0:04:14]} 11... Bxf3 {[%clk 0:04:42.6]} 12. Bxf3 {[%clk 0:04:10.5]}
12... Ne5 {[%clk 0:04:41.5]} 13. Qe2 {[%clk 0:04:09.3]} 13... h6 {[%clk
0:04:34.5]} 14. Bxf6 {[%clk 0:04:04.1]} 14... Qxf6 {[%clk 0:04:31.2]} 15. Nd5
{[%clk 0:03:54.9]} 15... Qg5 {[%clk 0:04:21.7]} 16. h4 {[%clk 0:03:43.7]} 16...
Qg6 {[%clk 0:04:20.2]} 17. O-O-O {[%clk 0:03:34.4]} 17... c6 {[%clk 0:04:17.7]}
18. Ne3 {[%clk 0:03:29.8]} 18... Qf6 {[%clk 0:04:11.5]} 19. Bg4+ {[%clk
0:03:18.3]} 19... Kc7 {[%clk 0:04:08.8]} 20. Bh3 {[%clk 0:02:33.5]} 20... Qxh4
{[%clk 0:03:56.4]} 21. Nf5 {[%clk 0:02:21.1]} 21... Qf4+ {[%clk 0:03:47.5]} 22.
Kb1 {[%clk 0:02:17.9]} 22... g6 {[%clk 0:03:45.8]} 23. Ng3 {[%clk 0:01:16.4]}
23... Qxf2 {[%clk 0:03:42.1]} 24. Qxf2 {[%clk 0:01:12.2]} 24... Bxf2 {[%clk
0:03:42]} 25. Ne2 {[%clk 0:01:10.8]} 25... Rxd1+ {[%clk 0:03:36.9]} 26. Rxd1
{[%clk 0:01:09.4]} 26... Rd8 {[%clk 0:03:36.3]} 27. Rxd8 {[%clk 0:01:07.9]}
27... Kxd8 {[%clk 0:03:35]} 28. c3 {[%clk 0:01:07.8]} 28... Ke7 {[%clk
0:03:31.7]} 29. Kc2 {[%clk 0:01:06.6]} 29... b6 {[%clk 0:03:29.5]} 30. Nd4
{[%clk 0:01:01]} 30... Kd6 {[%clk 0:03:22.2]} 31. Nf3 {[%clk 0:01:00.1]} 31...
h5 {[%clk 0:03:09.5]} 32. Nxe5 {[%clk 0:00:57.8]} 32... Kxe5 {[%clk 0:03:08.6]}
33. Kd3 {[%clk 0:00:57.7]} 33... Kf4 {[%clk 0:03:07.1]} 34. Bc8 {[%clk
0:00:56.2]} 34... Kg3 {[%clk 0:03:04.9]} 35. Ke2 {[%clk 0:00:55.5]} 35... Kxg2
{[%clk 0:03:00.2]} 36. Bb7 {[%clk 0:00:48]} 36... Kg3 {[%clk 0:02:56.4]} 37.
Bxc6 {[%clk 0:00:46.6]} 37... Bc5 {[%clk 0:02:55.6]} 38. e5 {[%clk 0:00:44.6]}
38... Kf4 {[%clk 0:02:53.7]} 39. Be8 {[%clk 0:00:43]} 39... Kxe5 {[%clk
0:02:52.1]} 40. Bxf7 {[%clk 0:00:42.2]} 40... Kf5 {[%clk 0:02:49.9]} 41. Kf3
{[%clk 0:00:39.1]} 41... Bd6 {[%clk 0:02:47]} 42. Be8 {[%clk 0:00:35.3]} 42...
Bf4 {[%clk 0:02:38.8]} 43. a4 {[%clk 0:00:31.8]} 43... Bc1 {[%clk 0:02:37.2]}
44. b3 {[%clk 0:00:31.1]} 44... Bd2 {[%clk 0:02:36.4]} 45. c4 {[%clk 0:00:30.4]}
45... Bb4 {[%clk 0:02:35.5]} 46. Bd7+ {[%clk 0:00:27]} 46... Kg5 {[%clk
0:02:34.3]} 47. Be8 {[%clk 0:00:26.4]} 47... Bd6 {[%clk 0:02:29.4]} 48. Bf7
{[%clk 0:00:24.6]} 48... Kh6 {[%clk 0:02:25.6]} 49. Be6 {[%clk 0:00:22.3]} 49...
g5 {[%clk 0:02:24.4]} 50. Ke4 {[%clk 0:00:20.8]} 50... g4 {[%clk 0:02:21.9]} 51.
Kf5 {[%clk 0:00:19.6]} 51... g3 {[%clk 0:02:18.1]} 52. Bd5 {[%clk 0:00:19.5]}
52... h4 {[%clk 0:02:15.3]} 53. Bg2 {[%clk 0:00:19.4]} 53... Be7 {[%clk
0:02:06.5]} 54. Ke6 {[%clk 0:00:18.5]} 54... Bb4 {[%clk 0:02:03.9]} 55. Kd5
{[%clk 0:00:17.3]} 55... Kg5 {[%clk 0:02:02.2]} 56. Ke4 {[%clk 0:00:16]} 56...
Bc5 {[%clk 0:01:56.2]} 57. Bh3 {[%clk 0:00:13.7]} 57... Kf6 {[%clk 0:01:54]} 58.
Bc8 {[%clk 0:00:12.6]} 58... g2 {[%clk 0:01:51.4]} 59. Bh3 {[%clk 0:00:11.8]}
59... g1=Q {[%clk 0:01:50.8]} 0-1

[Event "Live Chess"]
[Site "Chess.com"]
[Date "2024.06.02"]
[Round "-"]
[White "Crowded_House"]
[Black "MaksymYurii"]
[Result "1-0"]
[WhiteElo "1708"]
[BlackElo "970"]
[TimeControl "300"]
[EndTime "18:03:52 PDT"]
[Termination "Crowded_House won by checkmate"]

1. d4 {[%clk 0:04:57.6]} 1... e6 {[%clk 0:04:57.6]} 2. Nf3 {[%clk 0:04:55.1]}
2... Nc6 {[%clk 0:04:56.5]} 3. Bg5 {[%clk 0:04:54.4]} 3... Be7 {[%clk
0:04:53.5]} 4. Bxe7 {[%clk 0:04:53.4]} 4... Qxe7 {[%clk 0:04:52.7]} 5. e3 {[%clk
0:04:52.9]} 5... Nf6 {[%clk 0:04:50.8]} 6. c3 {[%clk 0:04:50.9]} 6... d5 {[%clk
0:04:49.7]} 7. Bd3 {[%clk 0:04:49.4]} 7... Bd7 {[%clk 0:04:36.9]} 8. Nbd2 {[%clk
0:04:47.9]} 8... e5 {[%clk 0:04:34.4]} 9. dxe5 {[%clk 0:04:46]} 9... Nxe5 {[%clk
0:04:33.2]} 10. Nxe5 {[%clk 0:04:45.3]} 10... Qxe5 {[%clk 0:04:32.4]} 11. Nf3
{[%clk 0:04:44.6]} 11... Qd6 {[%clk 0:04:27.7]} 12. Qc2 {[%clk 0:04:43.4]} 12...
g6 {[%clk 0:04:22.3]} 13. h3 {[%clk 0:04:31.1]} 13... O-O-O {[%clk 0:04:20.3]}
14. O-O-O {[%clk 0:04:29.7]} 14... Ne4 {[%clk 0:04:13.1]} 15. Bxe4 {[%clk
0:04:25.2]} 15... Qa6 {[%clk 0:04:05.1]} 16. Bxd5 {[%clk 0:04:11.9]} 16... Bf5
{[%clk 0:04:03.5]} 17. Be4 {[%clk 0:04:02.1]} 17... Qxa2 {[%clk 0:03:53.3]} 18.
Bxf5+ {[%clk 0:03:58.2]} 18... gxf5 {[%clk 0:03:47.2]} 19. Rxd8+ {[%clk
0:03:54.8]} 19... Rxd8 {[%clk 0:03:45.9]} 20. Qb1 {[%clk 0:03:53.8]} 20... Qb3
{[%clk 0:03:30.1]} 21. Nd4 {[%clk 0:03:46]} 21... Qd5 {[%clk 0:03:19]} 22. Qxf5+
{[%clk 0:03:39.7]} 22... Kb8 {[%clk 0:03:17.1]} 23. Qxd5 {[%clk 0:03:38.2]}
23... Rxd5 {[%clk 0:03:16.1]} 24. Rd1 {[%clk 0:03:34]} 24... Rg5 {[%clk
0:03:06.9]} 25. g3 {[%clk 0:03:28.1]} 25... c5 {[%clk 0:03:02.2]} 26. Nf3 {[%clk
0:03:26.7]} 26... Rf5 {[%clk 0:02:58.2]} 27. Nd2 {[%clk 0:03:01.9]} 27... Rxf2
{[%clk 0:02:56.2]} 28. Ne4 {[%clk 0:03:00.8]} 28... Rf3 {[%clk 0:02:52.9]} 29.
Nxc5 {[%clk 0:02:56.1]} 29... Rxe3 {[%clk 0:02:46.8]} 30. Rf1 {[%clk 0:02:44]}
30... Rxg3 {[%clk 0:02:43.4]} 31. Rxf7 {[%clk 0:02:41.6]} 31... Rxh3 {[%clk
0:02:42.6]} 32. Ne6 {[%clk 0:02:38.1]} 32... h5 {[%clk 0:02:39.4]} 33. Rf8#
{[%clk 0:02:35.6]} 1-0

[Event "Live Chess"]
[Site "Chess.com"]
[Date "2024.06.02"]
[Round "-"]
[White "KeithArkell"]
[Black "e4evr"]
[Result "1-0"]
[WhiteElo "2439"]
[BlackElo "2269"]
[TimeControl "300"]
[EndTime "18:04:02 PDT"]
[Termination "KeithArkell won by checkmate"]

1. d4 {[%clk 0:04:57.2]} 1... e6 {[%clk 0:04:58.9]} 2. Nf3 {[%clk 0:04:56.2]}
2... b6 {[%clk 0:04:58.5]} 3. Bg5 {[%clk 0:04:55.8]} 3... Bb7 {[%clk 0:04:58.1]}
4. Bxd8 {[%clk 0:04:55]} 4... Kxd8 {[%clk 0:04:52]} 5. c4 {[%clk 0:04:53.7]}
5... Nf6 {[%clk 0:04:51.4]} 6. Nc3 {[%clk 0:04:53.1]} 6... Be7 {[%clk
0:04:50.6]} 7. g3 {[%clk 0:04:52.7]} 7... Bf8 {[%clk 0:04:50.2]} 8. Bg2 {[%clk
0:04:52.3]} 8... Be7 {[%clk 0:04:49.9]} 9. O-O {[%clk 0:04:51.7]} 9... d6 {[%clk
0:04:49.2]} 10. Re1 {[%clk 0:04:49.7]} 10... Nbd7 {[%clk 0:04:48.6]} 11. e4
{[%clk 0:04:49.2]} 11... h5 {[%clk 0:04:46.3]} 12. e5 {[%clk 0:04:48.6]} 12...
Ng4 {[%clk 0:04:45.6]} 13. h3 {[%clk 0:04:47.4]} 13... Nh6 {[%clk 0:04:44.6]}
14. d5 {[%clk 0:04:46.7]} 14... Nf5 {[%clk 0:04:43.1]} 15. dxe6 {[%clk
0:04:45.4]} 15... fxe6 {[%clk 0:04:42.2]} 16. exd6 {[%clk 0:04:41.2]} 16... Bxd6
{[%clk 0:04:41.3]} 17. Ng5 {[%clk 0:04:40.6]} 17... Kc8 {[%clk 0:04:39.6]} 18.
Nxe6 {[%clk 0:04:38.8]} 18... Bxg2 {[%clk 0:04:37.8]} 19. Kxg2 {[%clk
0:04:37.6]} 19... h4 {[%clk 0:04:37.7]} 20. g4 {[%clk 0:04:33.9]} 20... Ne7
{[%clk 0:04:36.7]} 21. Nb5 {[%clk 0:04:31.9]} 21... Rh6 {[%clk 0:04:30.9]} 22.
Nxd6+ {[%clk 0:04:28.7]} 22... cxd6 {[%clk 0:04:30]} 23. Qxd6 {[%clk 0:04:27.6]}
23... Rxe6 {[%clk 0:04:29.3]} 24. Rxe6 {[%clk 0:04:25.6]} 24... a5 {[%clk
0:04:26.4]} 25. Rxe7 {[%clk 0:04:24.4]} 25... Rb8 {[%clk 0:04:25.2]} 26. Qc6+
{[%clk 0:04:23.3]} 26... Kd8 {[%clk 0:04:23.5]} 27. Qxd7# {[%clk 0:04:22.8]} 1-0

[Event "Live Chess"]
[Site "Chess.com"]
[Date "2024.06.02"]
[Round "-"]
[White "Frankie_Badacsonyi"]
[Black "CheckThis4"]
[Result "1/2-1/2"]
[WhiteElo "2416"]
[BlackElo "2687"]
[TimeControl "300"]
[EndTime "18:04:07 PDT"]
[Termination "Game drawn by agreement"]

1. d4 {[%clk 0:04:57.9]} 1... Nf6 {[%clk 0:04:56.7]} 2. c4 {[%clk 0:04:56.7]}
2... g6 {[%clk 0:04:54.6]} 3. Nc3 {[%clk 0:04:54.7]} 3... d5 {[%clk 0:04:53.7]}
4. cxd5 {[%clk 0:04:52.8]} 4... Nxd5 {[%clk 0:04:52.5]} 5. Bd2 {[%clk
0:04:52.1]} 5... Bg7 {[%clk 0:04:47.8]} 6. e4 {[%clk 0:04:50.8]} 6... Nb6 {[%clk
0:04:45.8]} 7. Be3 {[%clk 0:04:49.3]} 7... Nc6 {[%clk 0:04:41.1]} 8. Nf3 {[%clk
0:04:35.6]} 8... Bg4 {[%clk 0:04:38.4]} 9. d5 {[%clk 0:04:33.4]} 9... Ne5 {[%clk
0:04:35.2]} 10. Be2 {[%clk 0:04:30.8]} 10... Bxf3 {[%clk 0:04:31.4]} 11. gxf3
{[%clk 0:04:27.1]} 11... O-O {[%clk 0:04:23.4]} 12. Qb3 {[%clk 0:04:07.8]} 12...
c6 {[%clk 0:04:14]} 13. Rd1 {[%clk 0:03:51.8]} 13... cxd5 {[%clk 0:04:11.9]} 14.
Nxd5 {[%clk 0:03:49.2]} 14... Nxd5 {[%clk 0:04:06.9]} 15. Rxd5 {[%clk
0:03:46.4]} 15... Qc8 {[%clk 0:04:00.5]} 16. h4 {[%clk 0:03:27.8]} 16... e6
{[%clk 0:03:58.2]} 17. Rd1 {[%clk 0:03:23.9]} 17... Rd8 {[%clk 0:03:49.8]} 18.
O-O {[%clk 0:02:50.1]} 18... Qc7 {[%clk 0:03:36.1]} 19. Kg2 {[%clk 0:02:10.2]}
19... h6 {[%clk 0:03:28.6]} 20. Rxd8+ {[%clk 0:02:07.8]} 20... Rxd8 {[%clk
0:03:24.5]} 21. Rd1 {[%clk 0:02:07.7]} 21... b6 {[%clk 0:03:15.4]} 22. f4 {[%clk
0:01:55.7]} 22... Nd7 {[%clk 0:02:48.2]} 23. h5 {[%clk 0:01:51.7]} 23... gxh5
{[%clk 0:02:33.4]} 24. Bxh5 {[%clk 0:01:51.6]} 24... Nc5 {[%clk 0:02:27.4]} 25.
Rxd8+ {[%clk 0:01:44.1]} 25... Qxd8 {[%clk 0:02:27.3]} 26. Qc2 {[%clk
0:01:42.6]} 26... Bd4 {[%clk 0:02:04.9]} 27. Qd2 {[%clk 0:01:13.2]} 27... Bf6
{[%clk 0:02:02]} 28. Qxd8+ {[%clk 0:01:11.1]} 28... Bxd8 {[%clk 0:02:01.9]} 29.
Kf3 {[%clk 0:01:05.1]} 29... Kg7 {[%clk 0:01:56.6]} 30. e5 {[%clk 0:00:59.2]}
30... f5 {[%clk 0:01:49]} 31. exf6+ {[%clk 0:00:56]} 31... Bxf6 {[%clk
0:01:46.5]} 32. b3 {[%clk 0:00:54.9]} 32... Nd3 {[%clk 0:01:39.3]} 33. Ke2
{[%clk 0:00:42.4]} 33... Nb4 {[%clk 0:01:36.1]} 34. a4 {[%clk 0:00:41.6]} 34...
Nd5 {[%clk 0:01:30.8]} 35. Bd2 {[%clk 0:00:35.8]} 35... Bd4 {[%clk 0:01:25.1]}
36. Bf3 {[%clk 0:00:31.7]} 36... Kf6 {[%clk 0:01:21.4]} 37. f5 {[%clk
0:00:27.7]} 37... Kxf5 {[%clk 0:01:07]} 38. Bxh6 {[%clk 0:00:26.9]} 38... Bc5
{[%clk 0:00:57.9]} 39. Bxd5 {[%clk 0:00:25.3]} 39... exd5 {[%clk 0:00:56.8]} 40.
f3 {[%clk 0:00:24.5]} 40... Ke5 {[%clk 0:00:52.6]} 41. Kd3 {[%clk 0:00:23.6]}
1/2-1/2

[Event "Live Chess"]
[Site "Chess.com"]
[Date "2024.06.02"]
[Round "-"]
[White "Queensandpawns"]
[Black "Plato_77"]
[Result "1-0"]
[WhiteElo "2293"]
[BlackElo "1318"]
[TimeControl "300"]
[EndTime "18:04:23 PDT"]
[Termination "Queensandpawns won by resignation"]

1. e4 {[%clk 0:04:58.4]} 1... e6 {[%clk 0:04:56.9]} 2. d4 {[%clk 0:04:57.8]}
2... d5 {[%clk 0:04:56]} 3. Nd2 {[%clk 0:04:57.7]} 3... c5 {[%clk 0:04:53.9]} 4.
exd5 {[%clk 0:04:56.6]} 4... Qxd5 {[%clk 0:04:52]} 5. dxc5 {[%clk 0:04:56.5]}
5... Bxc5 {[%clk 0:04:49.2]} 6. Ngf3 {[%clk 0:04:56.4]} 6... Nc6 {[%clk
0:04:46.8]} 7. Bd3 {[%clk 0:04:56]} 7... Nf6 {[%clk 0:04:44.2]} 8. O-O {[%clk
0:04:55.6]} 8... O-O {[%clk 0:04:42.5]} 9. Re1 {[%clk 0:04:55.1]} 9... Nb4
{[%clk 0:04:38.2]} 10. Ne4 {[%clk 0:04:48.9]} 10... Nxd3 {[%clk 0:04:29.5]} 11.
cxd3 {[%clk 0:04:48.8]} 11... Nxe4 {[%clk 0:04:27.3]} 12. dxe4 {[%clk
0:04:48.7]} 12... Qxd1 {[%clk 0:04:26.3]} 13. Rxd1 {[%clk 0:04:48.6]} 13... b6
{[%clk 0:04:21.1]} 14. a3 {[%clk 0:04:42]} 14... Bb7 {[%clk 0:04:19.7]} 15. b4
{[%clk 0:04:40.7]} 15... Be7 {[%clk 0:04:18]} 16. Rd7 {[%clk 0:04:39.2]} 1-0